bitfinex-derivatives/quotes_SOLF0:USTF0_20251119
["timestamp","ask_amount","ask_price","bid_price","bid_amount"]
[1763517163456,3.26,140.24,140.19,9.7138]
[1763517163960,3.30504481,140.23,140.2,0.04512968]
[1763517164564,3.30504481,140.23,140.2,3.33512968]
[1763517165160,3.30504481,140.23,140.2,0.04512968]
[1763517168561,3.30504481,140.23,140.2,3.33512968]
[1763517170058,3.30504481,140.23,140.2,0.04512968]
[1763517170367,3.30504481,140.23,140.2,3.33512968]
[1763517172769,3.30504481,140.23,140.2,0.04512968]
[1763517173269,0.04504481,140.23,140.2,3.33512968]
[1763517173769,3.26,140.29,140.22,3.29]
[1763517173963,3.26,140.29,140.23,1.91363471]
[1763517174165,3.26,140.31,140.24,3.29]
[1763517174467,3.26,140.34,140.28,3.29]
[1763517174763,0.04523656,140.32,140.3,0.04500512]
[1763517175265,0.04523656,140.32,140.3,3.33500512]
[1763517175660,3.26,140.37,140.33,3.29]
[1763517176674,3.30941831,140.36,140.34,0.05369341]
[1763517177168,0.04941831,140.36,140.34,0.05369341]
[1763517177469,3.30941831,140.36,140.34,0.05369341]
[1763517177760,0.04941831,140.36,140.34,3.34369341]
[1763517178370,37.42,140.42,140.34,3.34369341]
[1763517178371,42.59363471,140.42,140.35,3.29]
[1763517178668,47.0935,140.42,140.36,3.29]
[1763517178869,3.26,140.42,140.38,3.29]
[1763517179065,3.26,140.42,140.37,1.91363471]
[1763517179269,3.31478676,140.41,140.38,0.05051025]
[1763517180770,3.26,140.39,140.32,3.29]
[1763517180962,1.91363471,140.38,140.32,3.29]
[1763517181268,9.676,140.37,140.32,3.29]
[1763517181663,3.31214511,140.36,140.33,3.34004471]
[1763517181859,3.31214511,140.36,140.33,0.05004471]
[1763517182563,3.26,140.35,140.33,0.05004471]
[1763517183364,9.6769,140.35,140.33,0.05004471]
[1763517183566,3.1,140.33,140.27,3.29]
[1763517183869,3.1,140.31,140.27,3.29]
[1763517184563,3.1,140.3,140.27,3.29]
[1763517184868,3.14700958,140.3,140.28,0.04637291]
[1763517186668,0.04700958,140.3,140.28,0.04637291]
[1763517186868,3.14700958,140.3,140.28,0.04637291]
[1763517188376,0.04700958,140.3,140.28,3.18637291]
[1763517189161,0.04700958,140.3,140.29,3.14]
[1763517190273,0.04700958,140.3,140.1,3.14]
[1763517190274,3.1,140.18,140.1,3.14]
[1763517190478,3.1,140.16,140.1,3.14]
[1763517191276,0.04489504,140.14,140.12,0.04538205]
[1763517193776,0.04489504,140.14,140.12,3.18538205]
[1763517193983,3.1,140.19,140.12,3.18538205]
[1763517194988,0.05257457,140.17,140.12,3.18538205]
[1763517195583,0.05257457,140.17,140.13,3.14]
[1763517195779,3.1,140.22,140.14,3.14]
[1763517195979,3.1,140.22,140.15,3.14]
[1763517196782,3.15428093,140.2,140.17,0.05284611]
[1763517198892,9.57818093,140.2,140.17,0.05284611]
[1763517199085,3.1,140.19,140.17,0.05284611]
[1763517200892,3.1,140.23,140.17,3.19284611]
[1763517201787,3.1,140.23,140.17,9.61764611]
[1763517201988,0.04752449,140.21,140.18,3.01]
[1763517204285,3.31752449,140.21,140.17,0.05284611]
[1763517204698,3.31752449,140.21,140.17,3.06284611]
[1763517204892,0.04752449,140.21,140.17,3.06284611]
[1763517205788,0.04752449,140.21,140.17,9.48754611]
[1763517205983,0.04752449,140.21,140.18,3.01]
[1763517206188,3.31752449,140.21,140.18,40.65]
[1763517206690,0.04752449,140.21,140.19,3.01]
[1763517207091,3.27,140.28,140.2,3.01]
[1763517207994,0.04525563,140.25,140.23,0.0520872]
[1763517210488,3.31525563,140.25,140.23,0.0520872]
[1763517211192,3.27,140.24,140.23,0.0520872]
[1763517213103,3.27,140.24,140.13,121.4098]
[1763517213104,3.27,140.22,140.15,3.01]
[1763517213299,3.27,140.22,140.15,40.63]
[1763517214197,0.05371054,140.2,140.17,0.05283272]
[1763517214590,0.05371054,140.2,140.17,6.47763272]
[1763517214798,3.25,140.25,140.18,3.24]
[1763517215291,3.25,140.24,140.2,3.24]
[1763517215895,0.04634353,140.23,140.21,0.0534772]
[1763517217195,3.29634353,140.23,140.21,0.0534772]
[1763517218003,3.25,140.22,140.21,0.0534772]
[1763517218605,6.46864353,140.23,140.21,0.0534772]
[1763517218905,0.04634353,140.23,140.21,0.0534772]
[1763517219092,3.29634353,140.23,140.21,0.0534772]
[1763517219892,9.71864353,140.23,140.21,0.0534772]
[1763517220100,6.46864353,140.23,140.21,0.0534772]
[1763517220299,3.25,140.22,140.21,0.0534772]
[1763517220705,3.29634353,140.23,140.21,0.0534772]
[1763517220906,0.04634353,140.23,140.21,0.0534772]
[1763517221404,3.29634353,140.23,140.21,0.0534772]
[1763517224511,0.04634353,140.23,140.21,0.0534772]
[1763517226710,0.04634353,140.23,140.21,9.7163772]
[1763517227020,0.04634353,140.23,140.22,40.84]
[1763517227803,9.6709,140.26,140.22,40.84]
[1763517227804,3.25,140.26,140.22,40.84]
[1763517228708,0.04721045,140.25,140.22,40.84]
[1763517229110,3.29721045,140.25,140.22,37.6]
[1763517229606,6.4218,140.24,140.22,37.6]
[1763517229812,3.25,140.23,140.22,37.6]
[1763517231513,3.25,140.23,140.21,0.0534772]
[1763517238408,3.29721045,140.25,140.21,3.2934772]
[1763517239507,0.04721045,140.25,140.22,3.24]
[1763517240510,6.46851045,140.25,140.22,3.24]
[1763517240711,9.71851045,140.25,140.22,3.24]
[1763517241320,3.29721045,140.25,140.22,3.24]
[1763517243415,0.04721045,140.25,140.22,3.24]
[1763517243616,3.04,140.28,140.22,3.24]
[1763517244009,3.04,140.28,140.25,3.1]
[1763517244209,3.04,140.28,140.25,40.64]
[1763517244814,3.08743977,140.28,140.25,40.68507626]
[1763517245412,3.08743977,140.28,140.26,3.1]
[1763517245619,0.04743977,140.28,140.26,3.1]
[1763517246606,6.57055409,140.36,140.26,3.1]
[1763517246607,3.04,140.36,140.26,3.1]
[1763517246811,8.48561056,140.35,140.3,3.1]
[1763517247014,106.36245409,140.39,140.31,3.1]
[1763517247015,3.04,140.38,140.31,3.1]
[1763517247423,3.04,140.37,140.32,6.418]
[1763517247622,3.08058951,140.36,140.33,0.04946056]
[1763517248125,8.51641585,140.36,140.33,0.04946056]
[1763517248308,9.4569,140.35,140.33,0.04946056]
[1763517248518,3.04,140.32,140.25,3.1]
[1763517248717,3.04,140.31,140.25,3.1]
[1763517249013,6.4192,140.3,140.25,3.1]
[1763517249220,6.4192,140.3,140.17,199.8792]
[1763517249221,3.04,140.28,140.17,3.1]
[1763517249417,0.05106484,140.24,140.21,3.14617545]
[1763517250714,3.04,140.31,140.22,3.1]
[1763517250915,3.04,140.3,140.23,40.66]
[1763517251122,9.4595,140.29,140.24,9.5215]
[1763517251323,3.04,140.28,140.24,9.5215]
[1763517251513,3.04,140.28,140.25,3.1]
[1763517251714,3.07898523,140.28,140.25,3.14538926]
[1763517251915,0.03898523,140.28,140.25,3.14538926]
[1763517252416,3.07898523,140.28,140.25,3.14538926]
[1763517254122,3.07898523,140.28,140.25,0.04538926]
[1763517254522,9.49908523,140.28,140.25,0.04538926]
[1763517254725,3.07898523,140.28,140.25,0.04538926]
[1763517256020,3.04,140.26,140.25,0.04538926]
[1763517266830,3.16,140.24,140.2,2.98]
[1763517267036,3.16,140.24,140.18,43.9444]
[1763517267237,3.16,140.24,140.18,6.4244]
[1763517267929,9.63651162,140.22,140.2,0.0457164]
[1763517268128,3.21381162,140.22,140.2,0.0457164]
[1763517273339,3.21381162,140.22,140.2,6.4692164]
[1763517273542,0.05381162,140.22,140.2,9.5892164]
[1763517273840,3.15381162,140.22,140.2,6.4692164]
[1763517276139,0.05381162,140.22,140.2,9.5892164]
[1763517276341,3.15381162,140.22,140.2,6.4692164]
[1763517277546,3.15381162,140.22,140.2,0.0457164]
[1763517278640,9.57651162,140.22,140.2,0.0457164]
[1763517278840,3.1,140.21,140.12,3.12]
[1763517279145,3.1,140.19,140.12,3.12]
[1763517279936,3.1,140.16,140.14,0.0458435]
[1763517282746,3.1,140.15,140.14,0.0458435]
[1763517283441,3.1,140.16,140.14,0.0458435]
[1763517284142,0.05089796,140.17,140.15,3.12]
[1763517285936,0.05089796,140.17,140.15,9.5458]
[1763517286438,0.05089796,140.17,140.16,3.12]
[1763517292355,0.05089796,140.17,140.15,6.4258]
[1763517292356,9.523,140.22,140.18,3.12]
[1763517292854,3.1,140.21,140.18,3.12]
[1763517293357,3.14547604,140.21,140.18,3.16765622]
[1763517293858,3.14547604,140.21,140.18,9.59205622]
[1763517294251,3.14547604,140.21,140.18,3.16765622]
[1763517295259,9.56877604,140.21,140.18,0.04765622]
[1763517295460,3.14547604,140.21,140.18,0.04765622]
[1763517295968,3.1,140.19,140.18,0.04765622]
[1763517300768,9.524,140.19,140.18,0.04765622]
[1763517302469,0.04547604,140.21,140.13,3.12]
[1763517302470,6.425,140.17,140.13,3.12]
[1763517302668,3.1,140.16,140.12,47.027]
[1763517302874,3.1,140.16,140.13,3.12]
[1763517303274,3.1,140.16,140.13,9.5467]
[1763517303675,3.15349242,140.16,140.13,9.59317464]
[1763517304274,3.26,140.15,140.13,0.04647464]
[1763517304680,9.6859,140.15,140.13,0.04647464]
[1763517304977,3.26,140.14,140.13,0.04647464]
[1763517306370,9.6863,140.14,140.13,0.04647464]
[1763517306681,3.26,140.13,140.06,3.16]
[1763517306872,3.26,140.12,140.08,3.16]
[1763517307468,3.26,140.12,140.09,0.05274894]
[1763517307469,0.05332741,140.11,140.09,0.05274894]
[1763517307778,3.31332741,140.11,140.09,0.05274894]
[1763517308667,3.26,140.1,140.09,0.05274894]
[1763517316487,0.05332741,140.11,140.09,3.21274894]
[1763517317891,0.05332741,140.11,140.09,9.64124894]
[1763517318191,0.05332741,140.11,140.09,3.21274894]
[1763517318693,3.31332741,140.11,140.09,0.05274894]
[1763517319990,3.26,140.1,140.09,0.05274894]
[1763517321590,0.05332741,140.11,140.09,3.21274894]
[1763517322887,0.05332741,140.11,140.09,9.64124894]
[1763517324191,0.05332741,140.11,140.1,3.21]
[1763517324399,9.6257,140.16,140.12,3.21]
[1763517325598,0.0449674,140.15,140.13,0.04717665]
[1763517326493,0.0449674,140.15,140.13,3.25717665]
[1763517326690,0.0449674,140.15,140.13,9.68377665]
[1763517329098,0.0449674,140.15,140.13,0.04717665]
[1763517329099,9.6708674,140.15,140.13,0.04717665]
[1763517329300,3.2,140.14,140.13,0.04717665]
[1763517334998,0.0449674,140.15,140.13,3.01717665]
[1763517335711,0.0449674,140.15,140.13,0.04717665]
[1763517336001,3.1449674,140.15,140.13,0.04717665]
[1763517337199,0.0449674,140.15,140.13,3.01717665]
[1763517337402,9.5239,140.2,140.14,2.97]
[1763517337901,3.1,140.2,140.14,2.97]
[1763517338301,9.5241,140.19,140.14,2.97]
[1763517338501,0.05398955,140.18,140.15,3.01745148]
[1763517340902,9.57848955,140.18,140.15,3.01745148]
[1763517343812,3.15398955,140.18,140.15,3.01745148]
[1763517345519,3.15398955,140.18,140.16,2.97]
[1763517346721,3.15398955,140.18,140.15,6.47325148]
[1763517346722,3.15398955,140.18,140.15,3.01745148]
[1763517350430,0.05398955,140.18,140.16,2.97]
[1763517350630,3.15398955,140.18,140.16,2.97]
[1763517353435,0.05398955,140.18,140.16,9.3953]
[1763517353834,0.05398955,140.18,140.17,2.97]
[1763517354433,3.1,140.22,140.19,2.97]
[1763517354933,3.1,140.24,140.21,9.3931]
[1763517355535,3.12103943,140.24,140.21,9.4432908]
[1763517356524,3.12103943,140.24,140.22,2.97]
[1763517356727,0.02103943,140.24,140.22,2.97]
[1763517356926,0.02103943,140.24,140.22,9.3923]
[1763517357128,0.02103943,140.24,140.23,2.97]
[1763517357332,3.1,140.27,140.23,2.97]
[1763517359631,9.5204,140.27,140.23,2.97]
[1763517360032,3.1,140.26,140.23,2.97]
[1763517362427,3.1,140.26,140.21,0.0501908]
[1763517362736,3.1,140.26,140.21,3.0201908]
[1763517363135,3.1,140.24,140.21,3.0201908]
[1763517364733,9.3922,140.23,140.21,3.0201908]
[1763517364935,9.3922,140.23,140.21,0.0501908]
[1763517365244,2.97,140.27,140.21,3.2401908]
[1763517365541,2.97,140.24,140.21,3.2401908]
[1763517366236,2.97,140.23,140.21,0.0501908]
[1763517366836,2.97,140.22,140.21,0.0501908]
[1763517367328,9.3922,140.23,140.21,0.0501908]
[1763517367733,2.97,140.22,140.21,0.0501908]
[1763517370247,2.97,140.2,140.15,3.19]
[1763517370554,2.97,140.2,140.05,100.0228]
[1763517370555,2.97,140.19,140.13,3.19]
[1763517370740,2.97,140.16,140.1,3.19]
[1763517371332,0.0501908,140.14,140.12,0.04942898]
[1763517371537,3.0201908,140.14,140.12,0.04942898]
[1763517372337,0.0501908,140.14,140.12,9.66642898]
[1763517372550,2.97,140.2,140.13,3.19]
[1763517372842,2.97,140.2,140.1,3.19]
[1763517373056,2.97,140.14,140.07,3.19]
[1763517373541,2.97,140.11,140.09,0.04668085]
[1763517375245,2.97,140.1,140.09,0.04668085]
[1763517376856,2.97,140.1,140.03,6.4311]
[1763517376857,2.97,140.08,140.02,41.89254651]
[1763517377037,2.97,140.08,140.0,9.6224]
[1763517377443,2.97,140.08,140.02,3.19]
[1763517378044,0.04522304,140.06,140.04,3.23672296]
[1763517378551,3.01522304,140.06,140.04,0.04672296]
[1763517385054,3.21,140.05,140.04,0.04672296]
[1763517385855,0.04522304,140.06,140.04,3.14672296]
[1763517386246,3.25522304,140.06,140.04,0.04672296]
[1763517387650,3.25522304,140.06,139.92,203.2274147]
[1763517387651,3.21,140.03,139.93,3.1]
[1763517387850,3.21,140.03,139.81,100.1985]
[1763517387851,3.21,140.01,139.92,2.9907147]
[1763517388051,3.21,139.98,139.93,1.24341224]
[1763517388356,3.21,139.98,139.91,3.1]
[1763517388553,3.21,139.96,139.91,3.1]
[1763517388748,3.25689149,139.95,139.92,3.14565978]
[1763517389651,0.04689149,139.95,139.92,3.14565978]
[1763517390458,3.25689149,139.95,139.92,0.04565978]
[1763517392851,0.04689149,139.95,139.92,3.14565978]
[1763517393055,0.04689149,139.95,139.92,5.06429467]
[1763517393257,0.04689149,139.95,139.93,3.1]
[1763517393451,3.01689149,139.95,139.92,1.96429467]
[1763517393758,3.01689149,139.95,139.92,3.22565978]
[1763517395254,3.01689149,139.95,139.92,0.04565978]
[1763517397256,0.04689149,139.95,139.94,3.18]
[1763517397657,0.04689149,139.95,139.93,5.09863489]
[1763517398465,0.04689149,139.95,139.92,3.22565978]
[1763517398765,0.04689149,139.95,139.94,3.18]
[1763517399356,2.97,139.99,139.96,3.18]
[1763517399564,2.97,139.99,139.96,5.09863489]
[1763517400466,0.04554835,139.99,139.97,9.614]
[1763517400665,3.01554835,139.99,139.96,0.04856417]
[1763517401164,2.97,139.98,139.96,0.04856417]
[1763517405669,2.97,139.97,139.96,0.04856417]
[1763517412665,0.04554835,139.99,139.96,0.04856417]
[1763517412966,2.97,139.98,139.96,0.04856417]
[1763517414267,5.44386434,139.97,139.96,0.04856417]
[1763517414575,2.97,139.98,139.96,0.04856417]
[1763517415466,0.04554835,139.99,139.96,3.22856417]
[1763517415974,3.01554835,139.99,139.96,3.22856417]
[1763517416266,5.45482726,139.98,139.96,3.22856417]
[1763517416474,3.01554835,139.99,139.96,3.22856417]
[1763517417265,5.45207172,139.98,139.96,3.22856417]
[1763517417468,3.01554835,139.99,139.96,3.22856417]
[1763517417771,5.45191069,139.98,139.96,3.22856417]
[1763517417972,3.01554835,139.99,139.96,3.22856417]
[1763517418172,5.45121804,139.98,139.96,3.22856417]
[1763517418366,3.01554835,139.99,139.96,3.22856417]
[1763517418668,5.45510293,139.98,139.96,3.22856417]
[1763517418866,3.01554835,139.99,139.96,3.22856417]
[1763517419068,5.45502903,139.98,139.96,3.22856417]
[1763517419270,3.01554835,139.99,139.96,3.22856417]
[1763517419475,5.45813968,139.98,139.96,3.22856417]
[1763517419669,3.01554835,139.99,139.96,3.22856417]
[1763517419969,5.4561748,139.98,139.96,3.22856417]
[1763517420274,3.01554835,139.99,139.96,3.22856417]
[1763517420466,5.45893765,139.98,139.96,3.22856417]
[1763517420670,8.42840274,139.97,139.96,0.04856417]
[1763517422473,5.45840274,139.97,139.96,3.22856417]
[1763517422871,0.04554835,139.99,139.96,3.22856417]
[1763517423176,5.46369005,139.98,139.96,9.66306417]
[1763517423367,3.19554835,139.99,139.97,3.21]
[1763517423567,5.46566968,139.98,139.97,3.21]
[1763517423766,0.04554835,139.99,139.97,3.21]
[1763517424168,3.19554835,139.99,139.96,3.25856417]
[1763517424570,5.46277967,139.98,139.96,3.25856417]
[1763517424770,3.19554835,139.99,139.96,3.25856417]
[1763517424974,0.04554835,139.99,139.96,3.25856417]
[1763517426172,0.04554835,139.99,139.98,3.21]
[1763517426883,5.4564632,140.04,140.01,3.21]
[1763517427080,3.15,140.06,140.02,3.21]
[1763517427283,8.60026119,140.05,140.02,3.21]
[1763517427583,3.15,140.05,140.02,3.21]
[1763517427782,3.15,140.05,140.02,3.26209677]
[1763517428078,3.15,140.07,140.02,3.26209677]
[1763517428285,5.45097863,140.06,140.02,3.26209677]
[1763517428481,3.15,140.06,140.02,3.26209677]
[1763517428685,3.15,140.06,140.03,11.55993489]
[1763517429877,3.15,140.06,140.03,5.12863489]
[1763517430279,3.15,140.06,140.04,3.21]
[1763517430581,99.9814,140.12,140.04,3.21]
[1763517430582,3.15,140.09,140.04,3.21]
[1763517430788,3.15,140.07,140.05,0.04528628]
[1763517439992,9.5795,140.07,140.05,0.04528628]
[1763517440489,3.15,140.06,140.05,0.04528628]
[1763517440692,3.15,140.03,140.0,3.21]
[1763517441582,3.15,140.03,140.0,0.05292011]
[1763517441788,3.19625025,140.03,140.0,3.34292011]
[1763517442594,3.19625025,140.03,140.0,0.05292011]
[1763517442994,9.62775025,140.03,140.0,0.05292011]
[1763517443196,2.99,140.02,140.0,0.05292011]
[1763517443803,2.99,140.02,140.0,3.34292011]
[1763517444407,2.99,140.02,140.0,0.05292011]
[1763517445691,2.99,140.02,140.0,3.34292011]
[1763517446306,2.99,140.02,140.0,0.05292011]
[1763517447400,9.422,140.02,140.0,0.05292011]
[1763517447601,2.99,140.01,140.0,0.05292011]
[1763517456406,9.4223,140.01,140.0,0.05292011]
[1763517458409,2.99,140.01,140.0,0.05292011]
[1763517459716,9.4223,140.01,140.0,0.05292011]
[1763517460714,2.98,139.97,139.93,3.19]
[1763517461317,2.98,139.95,139.92,43.68520355]
[1763517461517,3.03378692,139.95,139.92,43.7329268]
[1763517461909,2.98,139.94,139.92,43.7329268]
[1763517462419,9.4155,139.94,139.92,37.54772325]
[1763517463218,9.4155,139.94,139.92,0.04772325]
[1763517463412,2.98,139.94,139.92,0.04772325]
[1763517464722,9.4156,139.94,139.92,0.04772325]
[1763517465025,2.98,139.93,139.92,0.04772325]
[1763517465922,2.98,139.91,139.9,0.1824]
[1763517469111,0.05285545,139.92,139.9,3.3724]
[1763517469317,3.03285545,139.92,139.9,3.3724]
[1763517470419,3.03285545,139.92,139.9,6.36760355]
[1763517470621,3.03285545,139.92,139.9,3.17760355]
[1763517470816,3.03285545,139.92,139.9,0.1824]
[1763517473218,3.03285545,139.92,139.89,3.23668565]
[1763517473925,3.03285545,139.92,139.89,9.67438565]
[1763517477733,3.03285545,139.92,139.9,3.19]
[1763517478333,0.05285545,139.92,139.91,3.19]
[1763517478534,0.05285545,139.92,139.91,6.18520355]
[1763517479632,0.05285545,139.92,139.91,12.62200355]
[1763517480334,0.05285545,139.92,139.91,6.18520355]
[1763517482031,0.05285545,139.92,139.91,12.62210355]
[1763517483330,3.28285545,139.92,139.91,2.99520355]
[1763517483536,3.28285545,139.92,139.89,0.04668565]
[1763517483924,3.23,139.9,139.89,0.04668565]
[1763517485328,3.23,139.9,139.86,5.44480942]
[1763517485529,103.3985,139.86,139.8,2.22707734]
[1763517485730,3.23,139.85,139.8,2.22707734]
[1763517486027,9.6697,139.85,139.8,5.37707734]
[1763517486233,3.23,139.84,139.8,5.37707734]
[1763517486428,0.05347222,139.83,139.81,0.05341027]
[1763517487233,3.28347222,139.83,139.81,0.05341027]
[1763517488040,0.05347222,139.83,139.81,9.64481027]
[1763517488835,0.05347222,139.83,139.81,3.04861382]
[1763517489036,3.28347222,139.83,139.81,0.05341027]
[1763517490435,3.23,139.82,139.81,0.05341027]
[1763517496647,0.05347222,139.83,139.81,0.05341027]
[1763517497141,3.28347222,139.83,139.81,0.05341027]
[1763517497347,0.05347222,139.83,139.81,3.20341027]
[1763517498245,3.23,139.87,139.83,3.15]
[1763517499350,3.28353806,139.86,139.81,40.58861382]
[1763517499544,3.28353806,139.86,139.82,0.04944846]
[1763517500846,3.23,139.84,139.82,0.04944846]
[1763517502152,3.02353806,139.86,139.83,3.27]
[1763517502456,2.97,139.85,139.82,0.04944846]
[1763517503444,2.97,139.85,139.82,3.31944846]
[1763517503637,2.97,139.83,139.82,0.04944846]
[1763517510451,9.4098,139.85,139.82,3.31944846]
[1763517510652,2.97,139.84,139.82,3.31944846]
[1763517510855,2.97,139.84,139.82,0.04944846]
[1763517511852,6.4398,139.85,139.82,3.31944846]
[1763517512051,3.02353806,139.86,139.83,3.27]
[1763517512753,0.05353806,139.86,139.85,5.19017268]
[1763517513458,3.04353806,139.86,139.84,40.74]
[1763517513659,0.05353806,139.86,139.84,42.66017268]
[1763517514258,0.05353806,139.86,139.85,3.2]
[1763517516059,0.05353806,139.86,139.85,9.6396]
[1763517517768,2.99,139.9,139.87,9.6387]
[1763517518464,2.99,139.9,139.87,6.4387]
[1763517518661,2.99,139.92,139.89,9.6378]
[1763517518868,2.99,139.92,139.9,3.2]
[1763517519062,3.04444789,139.92,139.9,5.12017268]
[1763517520065,3.04444789,139.92,139.9,1.92017268]
[1763517520270,3.04444789,139.92,139.9,5.12017268]
[1763517523067,0.05444789,139.92,139.91,3.2]
[1763517528663,6.4344,139.97,139.93,3.2]
[1763517528865,6.4344,139.97,139.95,3.2]
[1763517528866,2.99,139.97,139.95,3.2]
[1763517529673,2.99,139.97,139.94,11.55557268]
[1763517529872,3.02340702,139.97,139.95,0.04938333]
[1763517530372,9.45760702,139.97,139.95,0.04938333]
[1763517531173,2.99,139.96,139.95,0.04938333]
[1763517531377,9.4246,139.96,139.95,0.04938333]
[1763517532967,2.99,139.96,139.95,0.04938333]
[1763517533170,3.02340702,139.97,139.95,3.24938333]
[1763517533879,3.02340702,139.97,139.95,0.04938333]
[1763517536271,0.03340702,139.97,139.95,3.24938333]
[1763517536474,2.99,140.0,139.97,3.2]
[1763517536785,2.99,140.04,139.98,1.92017268]
[1763517536968,2.99,140.03,139.98,11.55377268]
[1763517537170,2.99,140.03,139.98,5.12017268]
[1763517537371,2.99,140.03,139.98,1.92017268]
[1763517537675,6.4318,140.02,139.99,0.04511683]
[1763517537879,2.99,140.01,139.99,0.04511683]
[1763517541382,2.99,140.01,139.99,3.24511683]
[1763517541683,2.99,140.01,139.99,0.04511683]
[1763517542983,2.99,140.0,139.99,0.04511683]
[1763517544287,2.99,140.0,139.94,1.92017268]
[1763517544288,3.23,139.98,139.94,1.92017268]
[1763517544682,3.23,139.98,139.94,11.35557268]
[1763517545285,0.04511683,139.97,139.96,11.35477268]
[1763517545585,0.04511683,139.98,139.96,4.92017268]
[1763517546886,0.04511683,139.98,139.97,6.4341]
[1763517547080,0.04511683,139.98,139.96,4.92017268]
[1763517548588,0.04511683,139.98,139.96,11.35467268]
[1763517548793,0.04511683,139.98,139.97,3.0]
[1763517549698,0.04511683,139.98,139.97,9.4341]
[1763517549901,3.23,140.03,139.98,3.0]
[1763517550085,3.23,140.03,139.99,4.92017268]
[1763517550394,3.23,140.02,139.99,11.35327268]
[1763517550885,3.23,140.02,139.99,11.39862892]
[1763517553288,3.23,140.02,139.99,8.39862892]
[1763517553487,3.23,140.04,140.01,4.92017268]
[1763517553788,3.23,140.06,140.02,3.0]
[1763517554091,3.23,140.06,140.03,0.04798356]
[1763517554786,3.23,140.06,140.03,3.04798356]
[1763517555701,3.23,140.11,140.05,3.0]
[1763517555892,3.23,140.11,140.07,3.0]
[1763517556197,3.23,140.11,140.08,1.97363339]
[1763517557999,3.23,140.1,140.08,1.97363339]
[1763517558384,9.6582,140.1,140.08,0.05346071]
[1763517558697,3.23,140.09,140.04,4.92017268]
[1763517559489,3.23,140.06,140.05,0.05063114]
[1763517559689,9.6596,140.07,140.05,0.05063114]
[1763517560692,3.23,140.06,140.05,0.05063114]
[1763517563702,3.17,140.07,140.05,0.05063114]
[1763517565598,0.05023487,140.08,140.06,5.06017268]
[1763517565989,0.05023487,140.08,140.07,3.14]
[1763517566603,3.17,140.12,140.08,3.14]
[1763517566796,3.17,140.12,140.09,3.14]
[1763517566995,3.17,140.13,140.09,3.14]
[1763517567604,3.17,140.14,140.1,3.19291146]
[1763517568299,3.17,140.13,140.1,3.19291146]
[1763517568696,3.17,140.12,140.1,0.05291146]
[1763517569503,3.17,140.11,140.1,0.05291146]
[1763517574306,3.11,140.12,140.1,0.05291146]
[1763517574510,106.5362879,140.18,140.1,0.05291146]
[1763517574511,3.11,140.14,140.1,3.13291146]
[1763517576017,3.11,140.14,140.1,9.56091146]
[1763517576212,9.5344,140.19,140.11,3.08]
[1763517576405,3.11,140.19,140.14,3.13235081]
[1763517577104,237.2672,140.23,140.19,3.08]
[1763517577105,3.11,140.23,140.19,3.08]
[1763517577306,3.11,140.23,140.2,0.04871226]
[1763517579011,3.11,140.21,140.2,0.04871226]
[1763517580119,3.11,140.19,140.15,3.08]
[1763517580321,3.11,140.22,140.15,9.5058]
[1763517580611,9.533,140.22,140.15,9.5058]
[1763517581212,0.04683334,140.2,140.17,3.13125942]
[1763517581416,3.11,140.25,140.19,3.08]
[1763517581816,3.11,140.25,140.21,3.08]
[1763517582519,3.11,140.25,140.22,0.0542069]
[1763517583319,3.11,140.23,140.22,0.0542069]
[1763517584517,3.11,140.28,140.22,3.1342069]
[1763517585021,3.11,140.28,140.22,9.5567069]
[1763517586422,3.11,140.28,140.23,3.08]
[1763517586817,3.11,140.31,140.25,3.08]
[1763517587019,3.11,140.31,140.27,3.13426543]
[1763517587217,3.11,140.31,140.27,0.05426543]
[1763517588422,9.5287,140.31,140.27,0.05426543]
[1763517588621,3.11,140.31,140.27,3.13426543]